fUSD/lending_fUSD_20260218
["ID","MTS","AMOUNT","RATE_DAILY","PERIOD"]
[405896632,1771410638268,-3478182.11898741,6.528e-05,2]
[405896633,1771410638279,-4984.00742902,6.576e-05,2]
[405896634,1771410638289,-200.0,6.576e-05,2]
[405896635,1771410638298,-496.75,6.602e-05,2]
[405896636,1771410638308,-1852.42,6.605e-05,2]
[405896637,1771410638317,-496.75,6.655e-05,2]
[405896638,1771410638327,-1500.0,6.658e-05,2]
[405896639,1771410638337,-400.0,6.7e-05,2]
[405896640,1771410638347,-900.0,6.8e-05,2]
[405896641,1771410638357,-1400.0,6.9e-05,2]
[405896642,1771410638367,-1900.0,7e-05,2]
[405896643,1771410638377,-785.0,7.091e-05,2]
[405896644,1771410638387,-459.0,7.134e-05,2]
[405896645,1771410638396,-464.0,7.148e-05,2]
[405896646,1771410638406,-915.0,7.154e-05,2]
[405896647,1771410638418,-270.0,7.163e-05,2]
[405896648,1771410638428,-250.0,7.169e-05,2]
[405896649,1771410638437,-1680.0,7.18e-05,2]
[405896650,1771410638447,-255.0,7.18e-05,2]
[405896651,1771410638457,-150.99,7.181e-05,2]
[405896652,1771410638468,-9999.99,7.181e-05,2]
[405896653,1771410638478,-250.0,7.181e-05,2]
[405896654,1771410638488,-250.0,7.181e-05,2]
[405896655,1771410638497,-250.0,7.181e-05,2]
[405896656,1771410638506,-1612.57,7.289e-05,2]
[405896657,1771410638516,-917.50083504,7.512e-05,2]
[405896658,1771410638525,-664.75,7.586e-05,2]
[405896660,1771410638535,-500.0,7.586e-05,2]
[405896662,1771410638544,-500.0,7.586e-05,2]
[405896664,1771410638554,-500.0,7.586e-05,2]
[405896666,1771410638563,-500.0,7.586e-05,2]
[405896668,1771410638573,-578.20924308,7.586e-05,2]
[405896670,1771410638582,-500.0,7.586e-05,2]
[405896672,1771410638591,-500.0,7.586e-05,2]
[405896674,1771410638601,-500.0,7.586e-05,2]
[405896676,1771410638612,-500.0,7.586e-05,2]
[405896678,1771410638622,-500.0,7.586e-05,2]
[405896680,1771410638631,-500.0,7.586e-05,2]
[405896682,1771410638641,-721.12765535,7.586e-05,2]
[405896684,1771410638651,-5000.0,7.586e-05,2]
[405896685,1771410638661,-350.0,7.586e-05,2]
[405896686,1771410638672,-500.0,7.586e-05,2]
[405896687,1771410638682,-5000.0,7.586e-05,2]
[405896688,1771410638691,-9552.16786547,7.586e-05,2]
[405896689,1771410638704,-350.0,7.586e-05,2]
[405896690,1771410638714,-500.0,7.586e-05,2]
[405896691,1771410638723,-5000.0,7.586e-05,2]
[405896692,1771410638732,-350.0,7.586e-05,2]
[405896693,1771410638742,-500.0,7.586e-05,2]
[405896694,1771410638752,-5000.0,7.586e-05,2]
[405896695,1771410638762,-350.0,7.586e-05,2]
[405896696,1771410638772,-500.0,7.586e-05,2]
[405896697,1771410638782,-5000.0,7.586e-05,2]
[405896698,1771410638792,-350.0,7.586e-05,2]
[405896699,1771410638802,-500.0,7.586e-05,2]
[405896700,1771410638812,-5000.0,7.586e-05,2]
[405896701,1771410638822,-350.0,7.586e-05,2]
[405896702,1771410638832,-500.0,7.586e-05,2]
[405896703,1771410638842,-5000.0,7.586e-05,2]
[405896704,1771410638852,-500.0,7.586e-05,2]
[405896705,1771410638862,-5000.0,7.586e-05,2]
[405896706,1771410638871,-500.0,7.586e-05,2]
[405896707,1771410638881,-514.8407087,7.586e-05,2]
[405896708,1771410638891,-5000.0,7.586e-05,2]
[405896709,1771410638901,-500.0,7.586e-05,2]
[405896710,1771410638911,-500.0,7.586e-05,2]
[405896711,1771410638921,-350.0,7.586e-05,2]
[405896712,1771410638930,-404.92385594,7.586e-05,2]
[405896713,1771410638939,-200.19417896,7.586e-05,2]
[405896714,1771410638948,-5000.0,7.586e-05,2]
[405896715,1771410638957,-5000.0,7.586e-05,2]
[405896716,1771410638967,-3000.0,7.586e-05,2]
[405896717,1771410638976,-277.35679052,7.586e-05,2]
[405896718,1771410638987,-151.0,7.586e-05,2]
[405896719,1771410638996,-3000.0,7.586e-05,2]
[405896720,1771410639005,-3000.0,7.586e-05,2]
[405896721,1771410639015,-3000.0,7.586e-05,2]
[405896722,1771410639025,-3000.0,7.586e-05,2]
[405896723,1771410639034,-3000.0,7.586e-05,2]
[405896724,1771410639044,-3000.0,7.586e-05,2]
[405896725,1771410639054,-2642.42848556,7.586e-05,2]
[405896726,1771410639063,-209.40437684,7.586e-05,2]
[405896727,1771410639073,-250.0,7.586e-05,2]
[405896728,1771410639083,-250.0,7.586e-05,2]
[405896729,1771410639092,-250.0,7.586e-05,2]
[405896730,1771410639102,-250.0,7.586e-05,2]
[405896731,1771410639112,-209.40437684,7.586e-05,2]
[405896732,1771410639122,-250.0,7.586e-05,2]
[405896733,1771410639136,-250.0,7.586e-05,2]
[405896734,1771410639145,-250.0,7.586e-05,2]
[405896735,1771410639156,-250.0,7.586e-05,2]
[405896736,1771410639167,-200.0,7.586e-05,2]
[405896737,1771410639177,-250.0,7.586e-05,2]
[405896738,1771410639187,-250.0,7.586e-05,2]
[405896739,1771410639196,-200.0,7.586e-05,2]
[405896740,1771410639207,-250.0,7.586e-05,2]
[405896741,1771410639219,-250.0,7.586e-05,2]
[405896742,1771410639228,-200.0,7.586e-05,2]
[405896743,1771410639238,-250.0,7.586e-05,2]
[405896744,1771410639248,-250.0,7.586e-05,2]
[405896745,1771410639258,-200.0,7.586e-05,2]
[405896746,1771410639267,-250.0,7.586e-05,2]
[405896747,1771410639277,-250.0,7.586e-05,2]
[405896748,1771410639287,-200.0,7.586e-05,2]
[405896749,1771410639297,-250.0,7.586e-05,2]
[405896750,1771410639306,-200.0,7.586e-05,2]
[405896751,1771410639316,-250.0,7.586e-05,2]
[405896752,1771410639325,-200.0,7.586e-05,2]
[405896753,1771410639335,-250.0,7.586e-05,2]
[405896754,1771410639344,-200.0,7.586e-05,2]
[405896755,1771410639354,-250.0,7.586e-05,2]
[405896756,1771410639364,-336.71176693,7.586e-05,2]
[405896757,1771410639373,-250.0,7.586e-05,2]
[405896758,1771410639382,-303.47387582,7.586e-05,2]
[405896759,1771410639392,-693.3919763,7.586e-05,2]
[405896760,1771410639401,-174.61919141,7.586e-05,2]
[405896761,1771410639410,-743.50770149,7.586e-05,2]
[405896762,1771410639420,-500.0,7.586e-05,2]
[405896763,1771410639430,-500.0,7.586e-05,2]
[405896764,1771410639439,-500.0,7.586e-05,2]
[405896765,1771410639449,-162.380719,7.586e-05,2]
[405896766,1771410639457,-500.0,7.586e-05,2]
[405896767,1771410639465,-500.0,7.586e-05,2]
[405896768,1771410639474,-534.76175076,7.586e-05,2]
[405896769,1771410639483,-250.0,7.586e-05,2]
[405896770,1771410639492,-250.0,7.586e-05,2]
[405896771,1771410639502,-250.0,7.586e-05,2]
[405896772,1771410639512,-250.0,7.586e-05,2]
[405896773,1771410639521,-250.0,7.586e-05,2]
[405896774,1771410639531,-250.0,7.586e-05,2]
[405896775,1771410639540,-250.0,7.586e-05,2]
[405896776,1771410639550,-250.0,7.586e-05,2]
[405896777,1771410639559,-250.0,7.586e-05,2]
[405896778,1771410639568,-250.0,7.586e-05,2]
[405896779,1771410639577,-250.0,7.586e-05,2]
[405896780,1771410639586,-1000.0,7.586e-05,2]
[405896781,1771410639595,-1000.0,7.586e-05,2]
[405896782,1771410639607,-1000.0,7.586e-05,2]
[405896783,1771410639616,-1000.0,7.586e-05,2]
[405896784,1771410639625,-1000.0,7.586e-05,2]
[405896785,1771410639634,-1000.0,7.586e-05,2]
[405896786,1771410639644,-1000.0,7.586e-05,2]
[405896787,1771410639653,-1000.0,7.586e-05,2]
[405896788,1771410639665,-1000.0,7.586e-05,2]
[405896789,1771410639674,-1000.0,7.586e-05,2]
[405896790,1771410639684,-1000.0,7.586e-05,2]
[405896791,1771410639694,-151.0,7.586e-05,2]
[405896792,1771410639704,-156.587,7.586e-05,2]
[405896793,1771410639715,-162.380719,7.586e-05,2]
[405896794,1771410639724,-159.34648945,7.586e-05,2]
[405896795,1771410639735,-2000.0,7.6e-05,2]
[405896796,1771410639749,-174.42,7.633e-05,2]
[405896797,1771410639759,-280527.5691964,7.641e-05,2]
[405896798,1771410639768,-4211.673776,7.641e-05,2]
[405896799,1771410639778,-15197.7355398,7.641e-05,2]
[405896800,1771410639788,-646.67499838,7.641e-05,2]
[405896801,1771410639798,-151.0,7.641e-05,2]
[405896802,1771410639808,-719.04747942,7.641e-05,2]
[405896803,1771410639818,-416.39,7.678e-05,2]
[405896804,1771410639828,-500.0,7.686e-05,2]
[405896805,1771410639838,-1000.0,7.694e-05,2]
[405896806,1771410639847,-1000.0,7.694e-05,2]
[405896807,1771410639856,-1000.0,7.694e-05,2]
[405896808,1771410639866,-609.41578164,7.694e-05,2]
[405896809,1771410639876,-151.0,7.696e-05,2]
[405896810,1771410639886,-745.65223616,7.696e-05,2]
[405896811,1771410639895,-2000.0,7.7e-05,2]
[405896812,1771410639904,-152.0,7.717e-05,3]
[405896813,1771410639917,-1105.0,7.739e-05,2]
[405896814,1771410639927,-166.66,7.748e-05,2]
[405896815,1771410639938,-151.0,7.751e-05,2]
[405896816,1771410639948,-773.2413689,7.751e-05,2]
[405896817,1771410639957,-198.094,7.788e-05,2]
[405896818,1771410639967,-2400.0,7.8e-05,2]
[405896819,1771410639977,-2000.0,7.8e-05,2]
[405896820,1771410639988,-151.0,7.806e-05,2]
[405896821,1771410639997,-801.85129955,7.806e-05,2]
[405896822,1771410640008,-664.75,7.86e-05,2]
[405896823,1771410640019,-151.0,7.861e-05,2]
[405896824,1771410640029,-831.51979763,7.861e-05,2]
[405896825,1771410640039,-2351.0,7.898e-05,2]
[405896826,1771410640049,-433.0,7.898e-05,2]
[405896827,1771410640059,-400.0,7.9e-05,2]
[405896828,1771410640069,-2000.0,7.9e-05,2]
[405896829,1771410640079,-151.0,7.916e-05,2]
[405896830,1771410640088,-862.28603014,7.916e-05,2]
[405896831,1771410640098,-4260.74942153,7.923e-05,2]
[405896832,1771410640109,-151.0,7.971e-05,2]
[405896833,1771410640118,-894.19061326,7.971e-05,2]
[405896834,1771410640129,-1774.6587718,7.995e-05,2]
[405896835,1771410640140,-60698.0392529,7.995e-05,2]
[405896836,1771410640150,-40742.4900121,7.995e-05,2]
[405896837,1771410640159,-166.66,7.996e-05,2]
[405896838,1771410640171,-10000.0,8e-05,2]
[405896839,1771410640182,-400.0,8e-05,2]
[405896840,1771410640191,-2000.0,8e-05,2]
[405896841,1771410640201,-151.0,8.026e-05,2]
[405896842,1771410640212,-927.27566595,8.026e-05,2]
[405896843,1771410640222,-151.0,8.081e-05,2]
[405896844,1771410640231,-961.58486559,8.081e-05,2]
[405896845,1771410640242,-445.0,8.082e-05,2]
[405896846,1771410640251,-151.0,8.123e-05,2]
[405896847,1771410640264,-151.0,8.123e-05,2]
[405896848,1771410640274,-151.0,8.123e-05,2]
[405896849,1771410640284,-440.467353,8.123e-05,2]
[405896850,1771410640293,-440.467353,8.123e-05,2]
[405896851,1771410640303,-440.467353,8.123e-05,2]
[405896852,1771410640312,-440.467353,8.123e-05,2]
[405896853,1771410640322,-1000.0,8.123e-05,2]
[405896854,1771410640332,-1000.0,8.123e-05,2]
[405896855,1771410640342,-1000.0,8.123e-05,2]
[405896856,1771410640352,-1000.0,8.123e-05,2]
[405896857,1771410640361,-1000.0,8.123e-05,2]
[405896858,1771410640371,-1000.0,8.123e-05,2]
[405896859,1771410640381,-1000.0,8.123e-05,2]
[405896860,1771410640391,-1018.804948,8.123e-05,2]
[405896861,1771410640401,-1000.0,8.123e-05,2]
[405896862,1771410640410,-1000.0,8.123e-05,2]
[405896863,1771410640421,-1000.0,8.123e-05,2]
[405896864,1771410640430,-1000.0,8.123e-05,2]
[405896865,1771410640440,-1000.0,8.123e-05,2]
[405896866,1771410640452,-1018.804948,8.123e-05,2]
[405896867,1771410640461,-1000.0,8.123e-05,2]
[405896868,1771410640470,-623.161699,8.123e-05,2]
[405896869,1771410640480,-1018.804948,8.123e-05,2]
[405896870,1771410640490,-1018.804948,8.123e-05,2]
[405896871,1771410640504,-4583317.55766811,8.123e-05,2]
[405896872,1771410640513,-664.75,8.134e-05,2]
[405896873,1771410640522,-287.61899177,8.134e-05,2]
[405896874,1771410640532,-217.15233878,8.134e-05,2]
[405896875,1771410640542,-217.15233878,8.134e-05,2]
[405896876,1771410640551,-181.08010149,8.134e-05,2]
[405896877,1771410640560,-293.37000728,8.134e-05,2]
[405896878,1771410640570,-997.16350561,8.136e-05,2]
[405896879,1771410640579,-1105.0,8.146e-05,2]
[405896880,1771410640589,-2000.0,8.2e-05,2]
[405896881,1771410640598,-500.0,8.219e-05,2]
[405896882,1771410640607,-500.0,8.219e-05,2]
[405896883,1771410640616,-500.0,8.219e-05,2]
[405896884,1771410640626,-500.0,8.219e-05,2]
[405896885,1771410640635,-500.0,8.219e-05,2]
[405896886,1771410640644,-303.10870459,8.219e-05,2]
[405896887,1771410640653,-268.92645475,8.219e-05,2]
[405896888,1771410640664,-1100.0,8.219e-05,2]
[405896889,1771410640674,-16768.55,8.219e-05,2]
[405896890,1771410640683,-500.0,8.219e-05,2]
[405896891,1771410640692,-439.97,8.219e-05,2]
[405896892,1771410640702,-1000.0,8.219e-05,2]
[405896893,1771410640711,-10457.55,8.219e-05,2]
[405896894,1771410640721,-166.66,8.243e-05,2]
[405896895,1771410640730,-1100.0,8.274e-05,2]
[405896896,1771410640739,-2000.0,8.3e-05,2]
[405896897,1771410640749,-1100.0,8.329e-05,2]
[405896898,1771410640758,-892.1,8.338e-05,2]
[405896899,1771410640768,-210.0,8.367e-05,2]
[405896900,1771410640778,-238.0,8.367e-05,2]
[405896901,1771410640788,-230.0,8.367e-05,2]
[405896902,1771410640798,-159.0,8.367e-05,2]
[405896903,1771410640807,-1100.0,8.383e-05,2]
[405896904,1771410640816,-664.75,8.408e-05,2]
[405896905,1771410640826,-1100.0,8.438e-05,2]
[405896906,1771410640836,-166.66,8.491e-05,2]
[405896907,1771410640846,-1100.0,8.493e-05,2]
[405896908,1771410640855,-5000.0,8.5e-05,2]
[405896909,1771410640865,-1100.0,8.548e-05,2]
[405896910,1771410640874,-155.0,8.567e-05,2]
[405896911,1771410640883,-1105.0,8.575e-05,2]
[405896912,1771410640893,-1100.0,8.603e-05,2]
[405896913,1771410640902,-62594.1614408,8.611e-05,2]
[405896914,1771410640911,-939.7514441,8.627e-05,2]
[405896915,1771410640921,-1100.0,8.657e-05,2]
[405896916,1771410640931,-439.97,8.676e-05,2]
[405896917,1771410640940,-664.75,8.682e-05,2]
[405896918,1771410640949,-298.26089446,8.682e-05,2]
[405896919,1771410640959,-225.18697532,8.682e-05,2]
[405896920,1771410640967,-225.18697532,8.682e-05,2]
[405896921,1771410640976,-187.78006525,8.682e-05,2]
[405896922,1771410640986,-3292.0,8.688e-05,2]
[405896923,1771410640995,-736.0,8.688e-05,2]
[405896924,1771410641003,-1100.0,8.712e-05,2]
[405896925,1771410641013,-166.66,8.738e-05,2]
[405896926,1771410641022,-1100.0,8.767e-05,2]
[405896927,1771410641031,-1100.0,8.822e-05,2]
[405896928,1771410641040,-13966.6452666,8.828e-05,2]
[405896929,1771410641049,-3391.0731648,8.836e-05,2]
[405896930,1771410641059,-209.6868902,8.847e-05,2]
[405896931,1771410641068,-329.1265378,8.875e-05,2]
[405896932,1771410641077,-1100.0,8.877e-05,2]
[405896933,1771410641086,-152.0,8.907e-05,3]
[405896934,1771410641096,-1100.0,8.931e-05,2]
[405896935,1771410641105,-118.0,8.935e-05,12]
[405896936,1771410641114,-150.0,8.935e-05,12]
[405896937,1771410641123,-150.0,8.935e-05,12]
[405896938,1771410641138,-177.0,8.935e-05,12]
[405896939,1771410641148,-168.3888056,8.955e-05,2]
[405896940,1771410641157,-664.75,8.956e-05,2]
[405896941,1771410641168,-1100.0,8.986e-05,2]
[405896942,1771410641178,-10000.0,9e-05,2]
[405896943,1771410641187,-13543.5632192,9.01e-05,2]
[405896944,1771410641197,-9090.8783212,9.01e-05,2]
[405896945,1771410641207,-1105.0,9.026e-05,2]
[405896946,1771410641216,-1100.0,9.041e-05,2]
[405896947,1771410641226,-376.14461463,9.054e-05,2]
[405896948,1771410641235,-384.55236264,9.056e-05,2]
[405896949,1771410641244,-1100.0,9.096e-05,2]
[405896950,1771410641253,-756.6506983,9.102e-05,2]
[405896951,1771410641263,-439.97,9.132e-05,2]
[405896952,1771410641271,-1100.0,9.151e-05,2]
[405896953,1771410641280,-1100.0,9.205e-05,2]
[405896954,1771410641292,-664.75,9.23e-05,2]
[405896955,1771410641302,-309.29654756,9.23e-05,2]
[405896956,1771410641311,-233.51889341,9.23e-05,2]
[405896957,1771410641320,-233.51889341,9.23e-05,2]
[405896958,1771410641330,-194.72792766,9.23e-05,2]
[405896959,1771410641339,-3021.97743,9.237e-05,2]
[405896960,1771410641348,-2028.4491357,9.237e-05,2]
[405896961,1771410641358,-1000.0,9.247e-05,2]
[405896962,1771410641367,-1100.0,9.26e-05,2]
[405896963,1771410641376,-892.1,9.264e-05,2]
[405896964,1771410641385,-1100.0,9.315e-05,2]
[405896965,1771410641396,-155.0,9.346e-05,2]
[405896966,1771410641406,-1100.0,9.37e-05,2]
[405896967,1771410641415,-1100.0,9.424e-05,2]
[405896968,1771410641424,-1100.0,9.479e-05,2]
[405896969,1771410641434,-5000.0,9.5e-05,2]
[405896970,1771410641443,-1105.0,9.502e-05,2]
[405896971,1771410641452,-664.75615053,9.504e-05,2]
[405896972,1771410641462,-150.03319699,9.548e-05,2]
[405896973,1771410641471,-1252.0,9.556e-05,2]
[405896974,1771410641481,-4609.0,9.557e-05,2]
[405896975,1771410641490,-158.584971,9.589e-05,2]
[405896976,1771410641499,-439.97,9.589e-05,2]
[405896977,1771410641509,-320.74051982,9.778e-05,2]
[405896978,1771410641520,-242.15909246,9.778e-05,2]
[405896979,1771410641529,-242.15909246,9.778e-05,2]
[405896980,1771410641538,-201.93286099,9.778e-05,2]
[405896981,1771410641547,-173.62051493,9.899e-05,2]
[405896982,1771410641555,-160.0,9.899e-05,2]
[405896983,1771410641565,-151.0,0.0001,2]
[405896984,1771410641575,-1655.31,0.0001,2]
[405896985,1771410641584,-10000.0,0.0001,2]
[405896986,1771410641593,-701.90073116,0.0001,2]
[405896987,1771410641602,-151.0,0.0001,2]
[405896988,1771410641611,-151.0,0.0001,2]
[405896989,1771410641619,-262.91771234,0.0001,2]
[405896990,1771410641629,-262.91771233,0.0001,2]
[405896991,1771410641638,-262.91771233,0.0001,2]
[405896992,1771410641646,-178.151612,0.0001,2]
[405896993,1771410641656,-151.0,0.0001,2]
[405896994,1771410641665,-151.0,0.0001,2]
[405896995,1771410641674,-151.0,0.0001,2]
[405896996,1771410641683,-151.0,0.0001,2]
[405896997,1771410641692,-151.0,0.0001,2]
[405896998,1771410641702,-151.0,0.0001,2]
[405896999,1771410641711,-151.0,0.0001,2]
[405897000,1771410641721,-151.0,0.0001,2]
[405897001,1771410641730,-151.0,0.0001,2]
[405897002,1771410641739,-500.0,0.0001,2]
[405897003,1771410641750,-440.467353,0.0001,2]
[405897004,1771410641759,-151.0,0.0001,2]
[405897005,1771410641772,-500.0,0.0001,2]
[405897006,1771410641781,-151.0,0.0001,2]
[405897007,1771410641791,-500.0,0.0001,2]
[405897008,1771410641801,-500.0,0.0001,2]
[405897009,1771410642051,-151.0,0.0001,2]
[405897010,1771410642061,-500.0,0.0001,2]
[405897011,1771410642071,-151.0,0.0001,2]
[405897012,1771410642080,-151.0,0.0001,2]
[405897013,1771410642089,-500.0,0.0001,2]
[405897014,1771410642099,-151.0,0.0001,2]
[405897015,1771410642108,-151.0,0.0001,2]
[405897016,1771410642117,-500.0,0.0001,2]
[405897017,1771410642127,-151.0,0.0001,2]
[405897018,1771410642138,-151.0,0.0001,2]
[405897019,1771410642147,-151.0,0.0001,2]
[405897020,1771410642157,-151.0,0.0001,2]
[405897021,1771410642169,-151.0,0.0001,2]
[405897022,1771410642183,-440.467353,0.0001,2]
[405897023,1771410642194,-440.467353,0.0001,2]
[405897024,1771410642203,-151.0,0.0001,2]
[405897025,1771410642222,-440.467353,0.0001,2]
[405897026,1771410642231,-151.0,0.0001,2]
[405897027,1771410642240,-151.0,0.0001,2]
[405897028,1771410642249,-500.0,0.0001,2]
[405897029,1771410642258,-151.0,0.0001,2]
[405897030,1771410642267,-500.0,0.0001,2]
[405897031,1771410642276,-151.0,0.0001,2]
[405897032,1771410642285,-500.0,0.0001,2]
[405897033,1771410642294,-151.0,0.0001,2]
[405897034,1771410642303,-500.0,0.0001,2]
[405897035,1771410642312,-151.0,0.0001,2]
[405897036,1771410642321,-151.0,0.0001,2]
[405897037,1771410642330,-151.0,0.0001,2]
[405897038,1771410642339,-151.0,0.0001,2]
[405897039,1771410642348,-500.0,0.0001,2]
[405897040,1771410642357,-500.0,0.0001,2]
[405897041,1771410642366,-500.0,0.0001,2]
[405897042,1771410642376,-500.0,0.0001,2]
[405897043,1771410642385,-500.0,0.0001,2]
[405897044,1771410642395,-500.0,0.0001,2]
[405897045,1771410642404,-500.0,0.0001,2]
[405897046,1771410642413,-500.0,0.0001,2]
[405897047,1771410642423,-500.0,0.0001,2]
[405897048,1771410642432,-500.0,0.0001,2]
[405897049,1771410642441,-500.0,0.0001,2]
[405897050,1771410642450,-200.0,0.0001,2]
[405897051,1771410642460,-504.510834,0.0001,2]
[405897052,1771410642470,-200.0,0.0001,2]
[405897053,1771410642481,-151.0,0.0001,2]
[405897054,1771410642491,-151.0,0.0001,2]
[405897055,1771410642500,-151.0,0.0001,2]
[405897056,1771410642509,-151.0,0.0001,2]
[405897057,1771410642519,-151.0,0.0001,2]
[405897058,1771410642527,-151.0,0.0001,2]
[405897059,1771410642536,-151.0,0.0001,2]
[405897060,1771410642545,-151.0,0.0001,2]
[405897061,1771410642554,-151.0,0.0001,2]
[405897062,1771410642565,-151.0,0.0001,2]
[405897063,1771410642575,-151.0,0.0001,2]
[405897064,1771410642585,-1018.804948,0.0001,2]
[405897065,1771410642597,-1018.804948,0.0001,2]
[405897066,1771410642607,-1018.804948,0.0001,2]
[405897067,1771410642617,-1018.804948,0.0001,2]
[405897068,1771410642627,-2000.0,0.0001,2]
[405897069,1771410642635,-2000.0,0.0001,2]
[405897070,1771410642644,-2000.0,0.0001,2]
[405897071,1771410642653,-2000.0,0.0001,2]
[405897072,1771410642663,-2000.0,0.0001,2]
[405897073,1771410642674,-2000.0,0.0001,2]
[405897074,1771410642683,-1629.76441726,0.0001,2]
[405897075,1771410642693,-1629.76441726,0.0001,2]
[405897076,1771410642702,-1629.76441726,0.0001,2]
[405897077,1771410642712,-1105.0,0.00010002,2]
[405897078,1771410642723,-439.97,0.00010046,2]
[405897079,1771410642733,-183.1969814,0.00010058,4]
[405897080,1771410642742,-152.0,0.00010098,3]
[405897081,1771410642752,-892.1,0.0001019,2]
[405897082,1771410642762,-1000.0,0.00010274,2]
[405897083,1771410642771,-21159.47305191,0.00010296,2]
[405897084,1771410642781,-174.61919141,0.00010324,2]
[405897085,1771410642790,-599.60298507,0.00010325,2]
[405897086,1771410642800,-747.8093786,0.00010325,2]
[405897087,1771410642809,-332.60791905,0.00010326,2]
[405897088,1771410642818,-251.11897888,0.00010326,2]
[405897089,1771410642827,-251.11897888,0.00010326,2]
[405897090,1771410642836,-209.40437684,0.00010326,2]
[405897091,1771410642846,-245.86778969,0.00010367,2]
[405897092,1771410642856,-500.0,0.00010367,2]
[405897093,1771410642865,-500.0,0.00010367,2]
[405897094,1771410642875,-500.0,0.00010367,2]
[405897095,1771410642885,-500.0,0.00010367,2]
[405897096,1771410642894,-500.0,0.00010367,2]
[405897097,1771410642903,-167.33946284,0.00010367,2]
[405897098,1771410642912,-306.32454784,0.00010367,2]
[405897099,1771410642923,-500.0,0.00010367,2]
[405897100,1771410642932,-500.87268816,0.00010367,2]
[405897101,1771410642941,-500.0,0.00010367,2]
[405897102,1771410642950,-500.0,0.00010367,2]
[405897103,1771410642959,-500.92647612,0.00010367,2]
[405897104,1771410642968,-218.37761042,0.00010367,2]
[405897105,1771410642977,-500.0,0.00010367,2]
[405897106,1771410642987,-157.29853366,0.00010367,2]
[405897107,1771410642995,-174.42,0.00010376,2]
[405897108,1771410643005,-416.39,0.00010423,2]
[405897109,1771410643016,-5000.0,0.000105,2]
[405897110,1771410643025,-439.97,0.00010502,2]
[405897111,1771410643035,-6453.0,0.00010513,2]
[405897112,1771410643046,-929.0,0.00010516,2]
[405897113,1771410643055,-1105.0,0.00010528,2]
[405897114,1771410643065,-200.0,0.00010548,2]
[405897115,1771410643076,-25949.63612918,0.00010642,2]
[405897116,1771410643087,-269.09940998,0.000107,2]
[405897117,1771410643096,-2452.0,0.00010765,2]
[405897118,1771410643106,-1164.0,0.00010765,2]
[405897119,1771410643115,-497.649931,0.00010807,2]
[405897120,1771410643125,-204.304563,0.00010807,2]
[405897121,1771410643140,-344.91441206,0.00010874,2]
[405897122,1771410643150,-179.53048882,0.00010874,2]
[405897123,1771410643160,-260.4103811,0.00010874,2]
[405897124,1771410643171,-217.15233878,0.00010874,2]
[405897125,1771410643180,-2251.5658334,0.000109,2]
[405897126,1771410643190,-2251.56583335,0.000109,2]
[405897127,1771410643199,-2251.56583335,0.000109,2]
[405897128,1771410643209,-2251.56583335,0.000109,2]
[405897129,1771410643218,-2251.56583335,0.000109,2]
[405897130,1771410643229,-2251.56583335,0.000109,2]
[405897131,1771410643239,-2251.56583335,0.000109,2]
[405897132,1771410643248,-155.0,0.00010903,2]
[405897133,1771410643257,-1000.0,0.00010915,2]
[405897134,1771410643267,-1000.0,0.00010915,2]
[405897135,1771410643278,-1000.0,0.00010915,2]
[405897136,1771410643288,-1000.0,0.00010915,2]
[405897137,1771410643298,-1000.0,0.00010915,2]
[405897138,1771410643308,-277.69,0.00010941,2]
[405897139,1771410643317,-200.0,0.00010959,2]
[405897140,1771410643328,-200.0,0.00010959,2]
[405897141,1771410643339,-200.0,0.00010959,2]
[405897142,1771410643350,-200.0,0.00010959,2]
[405897143,1771410643361,-150.0,0.00010959,2]
[405897144,1771410643372,-150.0,0.00010959,2]